[Event "Czech Juniors Boys 2024"]
[Site "Jaromerice nad Rokytnou"]
[Date "2024.03.13"]
[Round "7.3"]
[White "Paseka, Matyas"]
[Black "Seidl, Jan"]
[Result "1/2-1/2"]
[ECO "B11"]
[WhiteElo "2233"]
[BlackElo "2230"]
[Annotator "RC"]
[PlyCount "153"]
[EventDate "2024.03.10"]
[EventType "tourn"]
[EventCountry "CZE"]
[SourceTitle "playchess.com"]
[Source "ChessBase"]
[SourceQuality "1"]
[TimeControl "40/5400+30:1800+30"]

1. e4 {[%emt 0:00:05]} c6 {[%emt 0:00:12]} 2. Nc3 {[%emt 0:00:16]} d5 {[%emt 0:00:04]} 3. Nf3 {[%emt 0:00:05]} Bg4 {[%emt 0:00:26]} 4. h3 {[%emt 0:00:10]} Bxf3 {[%emt 0:00:07]} 5. Qxf3 {[%emt 0:00:05]} e6 {[%emt 0:00:07]} 6. g3 {[%emt 0:00:15]} Nf6 {[%emt 0:04:57]} 7. Bg2 {[%emt 0:00:48]} Bb4 {[%emt 0:03:18]} 8. O-O {[%emt 0:33:38]} Bxc3 {[%emt 0:04:09]} 9. Qxc3 {[%emt 0:00:20]} dxe4 {[%emt 0:00:18]} 10. Re1 {[%emt 0:00:41]} Nbd7 {[%emt 0:02:03]} 11. b3 {[%emt 0:06:01]} Qb6 {[%emt 0:06:40]} 12. Bxe4 {[%emt 0:06:44]} Nxe4 {[%emt 0:00:14]} 13. Rxe4 {[%emt 0:00:05]} Nf6 {[%emt 0:00:19]} 14. Re2 {[%emt 0:01:49]} O-O {[%emt 0:06:09]} 15. Bb2 {[%emt 0:00:09]} Rfd8 {[%emt 0:03:09]} 16. Qf3 {[%emt 0:05:29]} Rd5 {[%emt 0:04:21]} 17. c4 {[%emt 0:12:40]} Rf5 {[%emt 0:00:18]} 18. Qc3 {[%emt 0:00:46]} h5 {[%emt 0:04:20]} 19. Kg2 {[%emt 0:03:18]} Qc7 {[%emt 0:06:01]} 20. Rae1 {[%emt 0:01:44]} Rg5 {[%emt 0:01:03]} 21. Re5 {[%emt 0:03:11]} Rg6 {[%emt 0:00:16]} 22. h4 {[%emt 0:00:18]} Rd8 {[%emt 0:07:35]} 23. Rg5 {[%emt 0:01:54]} Qd6 {[%emt 0:00:30]} 24. Rxg6 {[%emt 0:08:44]} fxg6 {[%emt 0:00:06]} 25. d4 {[%emt 0:00:28]} a6 {[%emt 0:04:42]} 26. Re5 {[%emt 0:02:06]} Qd7 {[%emt 0:01:34]} 27. Qd3 {[%emt 0:04:28]} Qf7 {[%emt 0:00:07]} 28. Rg5 {[%emt 0:00:10]} Kh7 {[%emt 0:00:54]} 29. f3 {[%emt 0:00:28]} b5 {[%emt 0:01:33]} 30. Ba3 {[%emt 0:03:29]} Kg8 {[%emt 0:03:19]} 31. Bb2 {[%emt 0:01:57]} Kh7 {[%emt 0:00:05]} 32. Kg1 {[%emt 0:02:31]} Rb8 {[%emt 0:02:29]} 33. Ba3 {[%emt 0:00:31]} Rd8 {[%emt 0:01:28]} 34. Bc5 {[%emt 0:00:24]} e5 {[%emt 0:06:00]} 35. Rxe5 {[%emt 0:00:14]} Nd7 {[%emt 0:00:06]} 36. Rxh5+ {[%emt 0:00:19]} Kg8 {[%emt 0:00:06]} 37. Rg5 {[%emt 0:00:08]} Nxc5 {[%emt 0:00:07]} 38. Rxc5 {[%emt 0:00:03]} Qf6 {[%emt 0:00:08]} 39. Rg5 {[%emt 0:02:49]} bxc4 {[%emt 0:03:10]} 40. Qxc4+ {[%emt 0:00:21]} Kh7 {[%emt 0:00:07]} 41. Kg2 {[%emt 0:13:42]} Rxd4 {[%emt 0:00:32]} 42. Qc2 {[%emt 0:00:22]} Qd6 {[%emt 0:02:05]} 43. Kh3 {[%emt 0:00:15]} Qe6+ {[%emt 0:09:37]} 44. Rg4 {[%emt 0:00:05]} Rxg4 {[%emt 0:02:03]} 45. fxg4 {[%emt 0:00:04]} Qd5 {[%emt 0:00:06]} 46. Kh2 {[%emt 0:05:33]} Qf3 {[%emt 0:08:03]} 47. Qg2 {[%emt 0:00:17]} Qc3 {[%emt 0:01:12]} 48. Qe4 {[%emt 0:04:37]} Qb2+ {[%emt 0:03:36]} 49. Kh3 {[%emt 0:00:27]} Qxa2 {[%emt 0:00:06]} 50. h5 {[%emt 0:00:06]} Qxb3 {[%emt 0:00:08]} 51. hxg6+ {[%emt 0:00:06]} Kh8 {[%emt 0:00:07]} 52. Qe8+ {[%emt 0:00:09]} Qg8 {[%emt 0:00:08]} 53. Qe7 {[%emt 0:00:05]} Qd5 {[%emt 0:00:29]} 54. Qe8+ {[%emt 0:03:39]} Qg8 {[%emt 0:00:06]} 55. Qxc6 {[%emt 0:00:13]} a5 {[%emt 0:02:28]} 56. Qb5 {[%emt 0:08:26]} Qa2 {[%emt 0:09:04]} 57. Qb8+ {[%emt 0:00:12]} Qg8 {[%emt 0:00:05]} 58. Qe5 {[%emt 0:00:09]} Qa2 {[%emt 0:00:40]} 59. Qe8+ {[%emt 0:00:17]} Qg8 {[%emt 0:00:04]} 60. Qd7 {[%emt 0:00:06]} Qa8 {[%emt 0:01:04]} 61. Kh2 {[%emt 0:00:17]} Qf8 {[%emt 0:00:56]} 62. Qf7 {[%emt 0:02:03]} Qg8 {[%emt 0:04:03]} 63. Kg1 {[%emt 0:00:34]} Qc8 {[%emt 0:04:13]} 64. Kh2 {[%emt 0:00:30]} Qd8 {[%emt 0:01:18]} 65. Qf5 {[%emt 0:00:25]} Qd2+ {[%emt 0:00:00]} 66. Kh3 {[%emt 0:00:06]} Qh6+ {[%emt 0:00:03]} 67. Kg2 {[%emt 0:00:03]} Qd2+ {[%emt 0:00:04]} 68. Kf3 {[%emt 0:00:14]} Qd1+ {[%emt 0:00:56]} 69. Ke3 {[%emt 0:00:26]} Qe1+ {[%emt 0:00:28]} 70. Kd4 {[%emt 0:00:43]} Qb4+ {[%emt 0:00:24]} 71. Kd3 {[%emt 0:00:26]} Qb3+ {[%emt 0:02:12]} 72. Kd2 {[%emt 0:00:05]} Qb2+ {[%emt 0:00:11]} 73. Kd1 {[%emt 0:01:46]} Qb3+ {[%emt 0:00:23]} 74. Ke2 {[%emt 0:00:16]} Qb2+ {[%emt 0:00:31]} 75. Kf3 {[%emt 0:00:50]} Qc3+ {[%emt 0:00:15]} 76. Kg2 {[%emt 0:00:33]} Qd2+ {[%emt 0:00:10]} 77. Kh3 {[%emt 0:00:33]} 1/2-1/2

[Event "Czech Juniors Boys 2024"]
[Site "Jaromerice nad Rokytnou"]
[Date "2024.03.13"]
[Round "7.4"]
[White "Bokhnak, Timofey"]
[Black "Jun, Rudolf"]
[Result "0-1"]
[ECO "B31"]
[WhiteElo "2241"]
[BlackElo "2243"]
[Annotator "RC"]
[PlyCount "104"]
[EventDate "2024.03.10"]
[EventType "tourn"]
[EventCountry "CZE"]
[SourceTitle "playchess.com"]
[Source "ChessBase"]
[SourceQuality "1"]
[TimeControl "40/5400+30:1800+30"]

1. e4 {[%emt 0:03:29]} c5 {[%emt 0:00:08]} 2. Nf3 {[%emt 0:00:07]} Nc6 {[%emt 0:01:23]} 3. Bb5 {[%emt 0:00:53]} g6 {[%emt 0:00:06]} 4. O-O {[%emt 0:01:16]} Bg7 {[%emt 0:00:08]} 5. c3 {[%emt 0:00:40]} Nf6 {[%emt 0:01:28]} 6. Re1 {[%emt 0:00:43]} O-O {[%emt 0:01:54]} 7. d4 {[%emt 0:02:44]} cxd4 {[%emt 0:11:41]} 8. cxd4 {[%emt 0:00:13]} d5 {[%emt 0:05:36]} 9. e5 {[%emt 0:01:08]} Ne4 {[%emt 0:11:07]} 10. Bxc6 {[%emt 0:03:04]} bxc6 {[%emt 0:00:16]} 11. Be3 {[%emt 0:00:10]} f6 {[%emt 0:07:18]} 12. Qc1 {[%emt 0:26:03]} Rb8 {[%emt 0:09:58]} 13. Nc3 {[%emt 0:08:58]} Nxc3 {[%emt 0:10:23]} 14. Qxc3 {[%emt 0:00:39]} Bg4 {[%emt 0:00:37]} 15. exf6 {[%emt 0:04:06]} exf6 {[%emt 0:01:13]} 16. Bf4 {[%emt 0:01:14]} Rc8 {[%emt 0:01:54]} 17. Nd2 {[%emt 0:08:31]} g5 {[%emt 0:03:45]} 18. Bg3 {[%emt 0:01:04]} Re8 {[%emt 0:04:06]} 19. Nb3 {[%emt 0:02:47]} Bf8 {[%emt 0:01:20]} 20. h3 {[%emt 0:04:47]} Bf5 {[%emt 0:01:37]} 21. Rxe8 {[%emt 0:05:46]} Qxe8 {[%emt 0:00:06]} 22. Rc1 {[%emt 0:00:29]} Qf7 {[%emt 0:01:21]} 23. Nc5 {[%emt 0:04:49]} Re8 {[%emt 0:01:55]} 24. b4 {[%emt 0:01:03]} h5 {[%emt 0:02:10]} 25. h4 {[%emt 0:01:49]} Bh6 {[%emt 0:01:28]} 26. Re1 {[%emt 0:00:31]} gxh4 {[%emt 0:02:59]} 27. Bxh4 {[%emt 0:00:08]} Bf4 {[%emt 0:02:27]} 28. Rxe8+ {[%emt 0:05:39]} Qxe8 {[%emt 0:00:07]} 29. Bg3 {[%emt 0:00:22]} Bg5 {[%emt 0:01:50]} 30. Kf1 {[%emt 0:02:36]} h4 {[%emt 0:00:12]} 31. Bd6 {[%emt 0:00:41]} Qh5 {[%emt 0:05:02]} 32. Kg1 {[%emt 0:02:56]} Qe2 {[%emt 0:02:11]} 33. Qf3 {[%emt 0:01:20]} Qxf3 {[%emt 0:01:52]} 34. gxf3 {[%emt 0:00:01]} Bd2 {[%emt 0:00:48]} 35. Nb3 {[%emt 0:02:56]} Bc3 {[%emt 0:00:51]} 36. Na5 {[%emt 0:00:35]} Bd7 {[%emt 0:01:14]} 37. Bc5 {[%emt 0:02:05]} a6 {[%emt 0:00:01]} 38. Nb7 {[%emt 0:00:30]} Kf7 {[%emt 0:00:55]} 39. Kg2 {[%emt 0:00:53]} Kg6 {[%emt 0:00:46]} 40. Nd6 {[%emt 0:00:47]} h3+ {[%emt 0:02:05]} 41. Kg1 {[%emt 0:31:41]} Kg5 {[%emt 0:30:42]} 42. Nb7 {[%emt 0:00:00]} Kf4 {[%emt 0:00:00]} 43. Be7 {[%emt 0:00:00]} Bxd4 {[%emt 0:00:00]} 44. Nc5 {[%emt 0:00:00]} Bc8 {[%emt 0:00:00]} 45. Nb3 {[%emt 0:00:00]} Bc3 {[%emt 0:00:00]} 46. Bc5 {[%emt 0:00:00]} Kxf3 {[%emt 0:00:00]} 47. Nd4+ {[%emt 0:00:00]} Bxd4 {[%emt 0:00:00]} 48. Bxd4 {[%emt 0:00:00]} f5 {[%emt 0:00:00]} 49. Kh2 {[%emt 0:00:00]} f4 {[%emt 0:00:00]} 50. a4 {[%emt 0:00:00]} Ke4 {[%emt 0:00:00]} 51. Bb2 {[%emt 0:00:00]} d4 {[%emt 0:00:00]} 52. Bc1 {[%emt 0:00:00]} Kf3 {[%emt 0:00:00]} 0-1

[Event "Czech Juniors Boys 2024"]
[Site "Jaromerice nad Rokytnou"]
[Date "2024.03.13"]
[Round "7.5"]
[White "Bohacek, Jan Andrej"]
[Black "Jares, Michal"]
[Result "0-1"]
[ECO "E04"]
[WhiteElo "2140"]
[BlackElo "2347"]
[Annotator "TA"]
[PlyCount "180"]
[EventDate "2024.03.10"]
[EventType "tourn"]
[EventCountry "CZE"]
[SourceTitle "playchess.com"]
[Source "ChessBase"]
[SourceQuality "1"]
[TimeControl "40/5400+30:1800+30"]

{[%evp 12,180,5,-11,11,17,20,27,33,35,69,25,29,22,22,25,25,17,20,28,20,29,46,14,8,5,22,41,42,42,41,36,34,37,47,63,45,42,43,41,75,43,27,16,106,100,91,0,0,0,0,0,0,0,0,0,0,0,0,0,0,0,0,0,0,0,0,0,0,0,0,0,0,0,-8,-8,-8,-8,-8,0,0,-8,-8,-8,0,0,0,-637,-34,-604,-366,-605,-605,-605,-584,-495,-488,-460,-380,-343,-343,-380,-318,-343,-325,-459,-318,-318,-318,-318,-318,-318,-318,-318,-318,-318,-318,-1117,-318,-459,-161,-306,-1004,-1122,-1000,-1008,-886,-459,-269,-1490,-1472,-1304,-790,-1263,-271,-29967,-29962,-29969,-29972,-29974,-29975,-29977,-29976,-29978,-29974,-29971,-1137,-1086,-1069,-929,-777,-470,-459,-29977,-29977,-29977,-29978,-29978,-29979,-29979,-29979,-29979,-29978,-29978,-29979,-29989,-29990,-29990,-29991,-29991,-29992]} 1. d4 {[%emt 0:00:19]} d5 {[%emt 0:00:13]} 2. c4 {[%emt 0:00:09]} e6 {[%emt 0:00:00]} 3. g3 {[%emt 0:01:20]} Nf6 {[%emt 0:00:01]} 4. Bg2 {[%emt 0:00:27]} Bb4+ {[%emt 0:00:19]} 5. Nd2 {[%emt 0:00:08][%cal Bb1d2,Bd2c4,Bc4e5][%mdl 32]} O-O {[%emt 0:00:29]} 6. Ngf3 {[%emt 0:00:08]} dxc4 {[%emt 0:00:43]} 7. Qc2 {[%emt 0:00:37]} b5 {[%emt 0:03:37]} 8. a4 {[%emt 0:00:43]} bxa4 {[%emt 0:08:10]} 9. O-O {[%emt 0:02:44]} (9. Qxc4 a5 $15) 9... Bb7 {[%emt 0:00:29] Weiß hat minimalen Vorteil.} 10. Nxc4 {[%emt 0:02:05]} a5 {[%emt 0:01:48]} 11. Rd1 {[%emt 0:14:18]} (11. Rxa4 Be4 12. Qd1 Qd5 13. Rxb4 axb4 $17) (11. Qxa4 Nbd7 $11) 11... Nbd7 {[%emt 0:02:02]} 12. Nfe5 {[%emt 0:15:24]} Bxg2 {[%emt 0:01:31]} 13. Kxg2 {[%emt 0:00:08]} Qc8 {[%emt 0:00:47]} 14. Qxa4 {[%emt 0:03:59]} Nxe5 {[%emt 0:04:00]} 15. Nxe5 {[%emt 0:01:35]} c5 {[%emt 0:04:15]} 16. Bg5 {[%emt 0:16:18]} Ne4 {[%emt 0:13:49]} 17. Be7 {[%emt 0:03:21]} (17. Be3 {vereinfacht} cxd4 18. Rxd4 Nd6 19. Bd2) 17... Re8 {[%emt 0:00:21]} 18. Bxc5 {[%emt 0:01:34]} Nxc5 {[%emt 0:01:51]} (18... Nxf2 $2 19. Kxf2 Bxc5 20. Rac1 (20. dxc5 Qxc5+ 21. Qd4 Rec8 $18) 20... Bxd4+ 21. Qxd4 $18) 19. dxc5 {[%emt 0:00:07]} Qxc5 {[%emt 0:00:39]} 20. Nc6 {[%emt 0:08:40]} Rac8 {[%emt 0:24:46]} 21. Nxb4 {[%emt 0:05:11]} axb4 {[%emt 0:01:11] [#]} 22. Rac1 $1 {[%emt 0:02:14]} Qf8 {[%emt 0:00:42]} (22... Qe5 23. Rd2) 23. Rxc8 {[%emt 0:01:54]} Rxc8 $14 {[%emt 0:00:02][%mdl 4096] Endspiel. KQR-KQR} 24. Rd4 {[%emt 0:01:26]} Rb8 {[%emt 0:00:05]} 25. b3 {[%emt 0:00:40]} g6 {[%emt 0:02:09]} 26. Qa7 {[%emt 0:03:35]} Rd8 {[%emt 0:02:14]} 27. Rf4 {[%emt 0:03:47]} e5 {[%emt 0:02:10]} (27... Rd2 $11) 28. Rc4 {[%emt 0:04:16]} Rc8 {[%emt 0:02:52]} 29. Rc7 {[%emt 0:02:50]} (29. Re4 $1 $16) 29... Rxc7 $11 {[%emt 0:01:02]} 30. Qxc7 {[%emt 0:00:07] KQ-KQ} Qa8+ {[%emt 0:00:13]} 31. f3 {[%emt 0:02:15]} e4 {[%emt 0:00:01]} 32. Qc4 {[%emt 0:02:00]} exf3+ {[%emt 0:00:05]} 33. exf3 {[%emt 0:00:06]} Qa2+ {[%emt 0:00:20]} 34. Kh3 {[%emt 0:01:29]} Qd2 {[%emt 0:00:02]} 35. Qe4 {[%emt 0:01:13]} Qc3 {[%emt 0:00:19]} 36. Qd5 {[%emt 0:00:28]} h5 {[%emt 0:00:25]} 37. Qd8+ {[%emt 0:00:31]} Kg7 {[%emt 0:00:02]} 38. Qd5 {[%emt 0:00:13]} f6 {[%emt 0:00:39]} 39. Kg2 {[%emt 0:00:50]} g5 {[%emt 0:01:19][%cal Bg6g5,Bg5g4][%mdl 32]} 40. Qd7+ {[%emt 0:00:40]} Kh6 {[%emt 0:01:31]} 41. Qd5 {[%emt 0:09:27]} g4 {[%emt 0:03:58]} 42. f4 {[%emt 0:03:01]} h4 {[%emt 0:03:22]} 43. gxh4 {[%emt 0:00:55]} Qh3+ {[%emt 0:00:20]} 44. Kg1 $1 {[%emt 0:00:14]} g3 {[%emt 0:01:21]} 45. hxg3 {[%emt 0:01:40]} Qxg3+ {[%emt 0:00:08]} 46. Kf1 {[%emt 0:03:33]} Qxf4+ {[%emt 0:01:31]} 47. Ke2 {[%emt 0:01:20]} Qxh4 {[%emt 0:00:43]} 48. Qd2+ $1 {[%emt 0:01:34]} Kg6 {[%emt 0:00:37]} 49. Qd8 $2 {[%emt 0:02:52][%mdl 8192]} (49. Qd3+ $11 f5 50. Qd6+ Kh5 51. Qe5) 49... Qh2+ $2 {[%emt 0:06:15]} ({Günstiger ist} 49... Qe4+ $19 50. Kd2 f5) 50. Kd1 $2 {[%emt 0:03:15][%mdl 8192] Davon erholt Weiß sich nicht mehr.} (50. Kf3 $15) 50... Qg1+ {[%emt 0:00:02]} 51. Kc2 $2 {[%emt 0:01:46]} (51. Ke2 Qg2+ 52. Kd3 Qh3+ 53. Kc4 Qc3+ 54. Kb5) 51... Qc5+ $19 {[%emt 0:00:02]} 52. Kd1 {[%emt 0:01:44]} Qc3 {[%emt 0:00:44]} 53. Qg8+ {[%emt 0:01:45]} Kf5 {[%emt 0:00:01]} 54. Qh7+ {[%emt 0:01:38]} Kf4 {[%emt 0:00:36] ...Qd4+ ist eine echte Drohung.} 55. Qh4+ {[%emt 0:01:12]} Ke5 $1 {[%emt 0:00:17]} 56. Qh2+ {[%emt 0:01:09]} Ke4 {[%emt 0:00:02]} 57. Qe2+ {[%emt 0:01:16]} Kd5 {[%emt 0:01:36]} 58. Qb5+ {[%emt 0:00:30]} (58. Qg2+ $142 Kd6 59. Qh2+ Qe5 60. Qh4) 58... Kd6 {[%emt 0:00:13]} 59. Qb8+ {[%emt 0:00:27]} Ke7 {[%emt 0:00:56]} 60. Qb7+ {[%emt 0:00:25]} Ke6 {[%emt 0:01:41]} 61. Qe4+ {[%emt 0:00:26]} Kd6 {[%emt 0:00:33]} 62. Qf4+ {[%emt 0:00:32]} Kd5 {[%emt 0:02:13]} 63. Qf5+ {[%emt 0:00:20] [#]} Qe5 $1 {[%emt 0:00:56]} 64. Qf3+ $2 {[%emt 0:00:20]} (64. Qd7+ Qd6 65. Qg4) 64... Kd6 $2 {[%emt 0:00:01]} (64... Kc5 65. Qh3 f5) 65. Kc2 {[%emt 0:01:18]} (65. Qg4 {kämpft weiter.} Qa1+ 66. Kc2) 65... Qc5+ $2 {[%emt 0:00:41]} (65... f5 66. Qd3+ Ke7) 66. Kb2 {[%emt 0:00:15]} (66. Kb1 $142) 66... f5 {[%emt 0:00:11]} 67. Qd3+ {[%emt 0:00:22]} Ke6 {[%emt 0:00:01] Droht stark ...Qe5+.} 68. Qa6+ {[%emt 0:00:13]} Ke5 {[%emt 0:00:28]} 69. Qe2+ {[%emt 0:00:20]} Kf6 {[%emt 0:00:01]} (69... Kf4 $142 {( -> ...Qe5+)} 70. Qh2+ Kg5 71. Qg3+ Kh5 72. Qh3+ Kg6 73. Qg3+ Kf7) 70. Qh5 $2 {[%emt 0:00:55]} (70. Qd2 Qe5+ 71. Kc2) 70... Qc3+ {[%emt 0:02:38]} 71. Ka2 {[%emt 0:00:08]} f4 {[%emt 0:01:09] Und jetzt ...f3 wäre schön.} 72. Qh8+ {[%emt 0:00:44]} Kf5 $2 {[%emt 0:00:16]} (72... Kg5 73. Qh1 Qd2+ 74. Kb1 Qd3+ 75. Kb2 f3 76. Qg1+ Kf4) 73. Qh7+ $2 {[%emt 0:00:08]} (73. Qh5+ $19 Ke4 74. Qe2+ Kd4 75. Qf2+ Kd3 76. Qf3+ (76. Qxf4 {ist ein Selbstmatt.} Qd2+ 77. Qxd2+ Kxd2 78. Kb2 Kd3 79. Kb1 Kc3 80. Ka2 Kc2 81. Ka1 Kxb3 82. Kb1 Ka3 83. Kc2 b3+ 84. Kc1 Ka2 85. Kd2 b2 86. Ke3 b1=Q 87. Kf4 Qb5 88. Kg4 Kb3 89. Kg3 Qg5+ 90. Kf3 Kc3 91. Ke4 Kc4 92. Kf3 Kd3 93. Kf2 Qg4 94. Kf1 Ke3 95. Ke1 Qg1#) 76... Kc2 77. Qe2+ Qd2 78. Qc4+ Kd1+ 79. Kb1) 73... Ke5 {[%emt 0:00:35]} 74. Qe7+ {[%emt 0:00:11]} Kd4 {[%emt 0:00:13]} 75. Qa7+ {[%emt 0:00:20]} Kd3 {[%emt 0:00:22]} 76. Qd7+ {[%emt 0:00:14]} Ke3 {[%emt 0:00:28]} 77. Qe6+ {[%emt 0:00:17]} Kf3 {[%emt 0:00:48]} 78. Qh3+ {[%emt 0:00:07]} Ke4 {[%emt 0:02:57]} (78... Ke2 $142 79. Qg4+ f3 80. Qh5 Kd1 (80... Qc2+ $2 81. Ka1 $19) 81. Qh1+ Qe1 82. Qxf3+ Qe2+ 83. Qxe2+ Kxe2 84. Ka1 Kd2 85. Kb2 Kd3 86. Kb1 Kc3 87. Ka2 Kc2 88. Ka1 Kxb3 89. Kb1 Ka3 90. Kc2 b3+ 91. Kc1 Ka2 92. Kd2 b2 93. Ke3 Kb3 (93... b1=R {führt zum Matt.} 94. Kd4 Rb8 95. Ke5 Rb5+ 96. Kf6 Kb3 97. Kg6 Kc4 98. Kf6 Rd5 99. Kf7 Kc5 100. Ke6 Kc6 101. Kf7 Kd6 102. Kf6 Kd7 103. Kg7 Ke7 104. Kg6 Ra5 105. Kg7 Ra6 106. Kh8 Rg6 107. Kh7 Kf7 108. Kh8 Rh6#) 94. Kf4 b1=Q (94... b1=B 95. Kg5 $11) 95. Kg4 Qe4+ 96. Kg5 Kc4 97. Kf6 Kd5 98. Kf7 Qe5 99. Kf8 Qc7 100. Kg8 Ke6 101. Kh8 Kf7 102. Kh7 Qh2#) 79. Qe6+ {[%emt 0:00:15] [#]} Qe5 $1 {[%emt 0:00:37]} 80. Qc4+ {[%emt 0:00:22]} Qd4 {[%emt 0:00:04]} 81. Qe2+ {[%emt 0:00:16]} Qe3 {[%emt 0:00:46]} 82. Qg2+ {[%emt 0:00:20]} (82. Qc4+ $19 Kf5 83. Qb5+ Qe5 84. Qxb4) 82... f3 {[%emt 0:00:11] Schwarz setzt Matt.} 83. Qg6+ {[%emt 0:00:09]} Kd4 {[%emt 0:01:19]} 84. Qb6+ {[%emt 0:01:33]} Kd3 {[%emt 0:00:48]} 85. Qb5+ {[%emt 0:00:08]} Kc2 {[%emt 0:01:30] Aktives Gegenspiel!} 86. Qc4+ {[%emt 0:00:27]} Kd1 {[%emt 0:03:18]} 87. Kb1 {[%emt 0:01:15]} f2 {[%emt 0:05:08]} 88. Qf1+ {[%emt 0:00:08]} Kd2 {[%emt 0:00:31]} 89. Qc1+ {[%emt 0:00:13]} Ke2 {[%emt 0:00:43]} 90. Qc2+ {[%emt 0:00:16]} Ke1 {[%emt 0:01:03] Gewichteter Fehlerwert: Weiß=0.34/Schwarz=0.27 (präzise) .  Verlustzug:     	Weiß=2     	---        Gewinn verpasst:   	---       	Schwarz=1     Fehler:       	Weiß=6     	Schwarz=2     Ungenau:       	Weiß=3     	Schwarz=3     OK:         	Weiß=23    	Schwarz=20    Bester:       	Weiß=8     	Schwarz=7     Stark:        	Weiß=2     	Schwarz=2} 0-1

[Event "Czech Juniors Boys 2024"]
[Site "Jaromerice nad Rokytnou"]
[Date "2024.03.13"]
[Round "7.6"]
[White "Hak, David"]
[Black "Frank, Adam"]
[Result "1/2-1/2"]
[ECO "E92"]
[WhiteElo "2283"]
[BlackElo "2284"]
[Annotator "RC"]
[PlyCount "112"]
[EventDate "2024.03.10"]
[EventType "tourn"]
[EventCountry "CZE"]
[SourceTitle "playchess.com"]
[Source "ChessBase"]
[SourceQuality "1"]
[TimeControl "40/5400+30:1800+30"]

1. d4 {[%emt 0:00:32]} Nf6 {[%emt 0:00:11]} 2. c4 {[%emt 0:00:07]} g6 {[%emt 0:00:03]} 3. Nc3 {[%emt 0:00:07]} Bg7 {[%emt 0:00:03]} 4. e4 {[%emt 0:00:08]} d6 {[%emt 0:00:04]} 5. Nf3 {[%emt 0:00:20]} O-O {[%emt 0:00:06]} 6. Be2 {[%emt 0:00:07]} e5 {[%emt 0:00:03]} 7. O-O {[%emt 0:00:22]} h6 {[%emt 0:00:05]} 8. d5 {[%emt 0:02:12]} Nbd7 {[%emt 0:00:06]} 9. Ne1 {[%emt 0:09:35]} Nc5 {[%emt 0:00:39]} 10. f3 {[%emt 0:01:40]} a5 {[%emt 0:00:06]} 11. Be3 {[%emt 0:04:21]} Bd7 {[%emt 0:04:33]} 12. Nd3 {[%emt 0:13:47]} b6 {[%emt 0:01:07]} 13. Qd2 {[%emt 0:03:05]} Kh7 {[%emt 0:21:48]} 14. g4 {[%emt 0:14:17]} Ng8 {[%emt 0:01:53]} 15. Nxc5 {[%emt 0:07:41]} bxc5 {[%emt 0:00:21]} 16. Bd3 {[%emt 0:00:15]} Ne7 {[%emt 0:14:43]} 17. Ne2 {[%emt 0:00:24]} f5 {[%emt 0:02:14]} 18. exf5 {[%emt 0:01:07]} gxf5 {[%emt 0:00:08]} 19. Ng3 {[%emt 0:00:51]} Qe8 {[%emt 0:09:07]} 20. Kh1 {[%emt 0:03:02]} Rb8 {[%emt 0:03:05]} 21. Nh5 {[%emt 0:07:01]} Qg6 {[%emt 0:06:27]} 22. Qxa5 {[%emt 0:11:39]} e4 {[%emt 0:08:46]} 23. Qxc7 {[%emt 0:04:33]} exd3 {[%emt 0:00:04]} 24. Qxd7 {[%emt 0:00:15]} Rf7 {[%emt 0:00:04]} 25. Qe6 {[%emt 0:03:46]} Rxb2 {[%emt 0:04:22]} 26. Nxg7 {[%emt 0:04:39]} Rxg7 {[%emt 0:00:19]} 27. Bf4 {[%emt 0:02:19]} fxg4 {[%emt 0:10:35]} 28. Bxd6 {[%emt 0:00:47]} Nf5 {[%emt 0:01:11]} 29. Be5 {[%emt 0:05:09]} g3 {[%emt 0:00:13]} 30. Qxg6+ {[%emt 0:00:18]} Rxg6 {[%emt 0:00:04]} 31. Bxb2 {[%emt 0:00:24]} g2+ {[%emt 0:00:04]} 32. Kg1 {[%emt 0:00:01]} gxf1=Q+ {[%emt 0:00:06]} 33. Kxf1 {[%emt 0:00:05]} Ne3+ {[%emt 0:00:05]} 34. Kf2 {[%emt 0:00:05]} Nxc4 {[%emt 0:00:05]} 35. Bc3 {[%emt 0:00:53]} Na3 {[%emt 0:07:37]} 36. Re1 {[%emt 0:01:52]} Rd6 {[%emt 0:00:04]} 37. Re7+ {[%emt 0:00:20]} Kg8 {[%emt 0:00:14]} 38. Rg7+ {[%emt 0:00:29]} Kf8 {[%emt 0:00:07]} 39. Rc7 {[%emt 0:00:16]} Nb1 {[%emt 0:03:25]} 40. Rxc5 {[%emt 0:00:59]} Nxc3 {[%emt 0:03:11]} 41. Rxc3 {[%emt 0:01:46]} Rxd5 {[%emt 0:00:04]} 42. Ke1 {[%emt 0:01:04]} Re5+ {[%emt 0:01:40]} 43. Kd1 {[%emt 0:01:30]} Re2 {[%emt 0:00:11]} 44. a3 {[%emt 0:00:39]} Rxh2 {[%emt 0:05:04]} 45. Rxd3 {[%emt 0:00:31]} h5 {[%emt 0:01:55]} 46. Rd2 {[%emt 0:03:21]} Rh1+ {[%emt 0:00:48]} 47. Ke2 {[%emt 0:02:17]} h4 {[%emt 0:01:08]} 48. Rd3 {[%emt 0:04:53]} Rh2+ {[%emt 0:03:08]} 49. Kf1 {[%emt 0:03:42]} Ra2 {[%emt 0:09:43]} 50. Rd8+ {[%emt 0:08:59]} Ke7 {[%emt 0:00:00]} 51. Ra8 {[%emt 0:00:08]} h3 {[%emt 0:00:00]} 52. Kg1 {[%emt 0:00:12]} Kf6 {[%emt 0:00:00]} 53. Ra5 {[%emt 0:01:43]} Rg2+ {[%emt 0:00:00]} 54. Kh1 {[%emt 0:00:25]} Rf2 {[%emt 0:00:00]} 55. Ra8 {[%emt 0:00:25]} Kg7 {[%emt 0:00:00]} 56. Ra4 {[%emt 0:03:37]} Rxf3 {[%emt 0:00:00]} 1/2-1/2